[Event "XII Cracow ICC-A 2024"]
[Site "Krakow"]
[Date "2024.06.22"]
[Round "1.13"]
[White "Drozdowski, Kacper"]
[Black "Jaskolka, Tomasz"]
[Result "1-0"]
[ECO "B49"]
[WhiteElo "2448"]
[BlackElo "2249"]
[Annotator "TA"]
[PlyCount "57"]
[EventDate "2024.06.20"]
[EventType "swiss"]
[EventCountry "POL"]
[SourceTitle "playchess.com"]
[Source "ChessBase"]
[SourceQuality "1"]
[TimeControl "40/5400+30:1800+30"]

{[%evp 27,57,7,62,31,40,35,42,44,85,78,70,49,56,0,87,93,103,113,110,104,107,143,359,334,291,335,582,606,595,592,1481,1471]} 1. e4 {[%emt 0:00:03]} c5 {[%emt 0:00:03]} 2. Nf3 {[%emt 0:00:05]} e6 {[%emt 0:00:05]} 3. d4 {[%emt 0:00:05]} cxd4 {[%emt 0:00:04]} 4. Nxd4 {[%emt 0:00:04]} Nc6 {[%emt 0:00:04]} 5. Nc3 {[%emt 0:00:06]} Qc7 {[%emt 0:00:14]} 6. Be3 {[%emt 0:00:11]} a6 {[%emt 0:00:09]} 7. Be2 {[%emt 0:00:10]} Nf6 {[%emt 0:01:04]} 8. O-O {[%emt 0:00:07]} Be7 {[%emt 0:00:13]} 9. f4 {[%emt 0:00:13]} d6 {[%emt 0:00:18]} 10. Kh1 {[%emt 0:00:47]} O-O {[%emt 0:06:28]} 11. Qe1 {[%emt 0:00:06]} Nxd4 {[%emt 0:00:19]} 12. Bxd4 {[%emt 0:00:07]} b5 {[%emt 0:00:16]} 13. a3 {[%emt 0:00:47]} Bb7 {[%emt 0:01:29]} 14. Qg3 {[%emt 0:00:18]} g6 {[%emt 0:16:20]} (14... Rad8 $11) 15. Bf3 {[%emt 0:10:51]} Bc6 {[%emt 0:04:02]} 16. Rae1 {[%emt 0:13:35]} Qb7 {[%emt 0:13:37]} 17. e5 {[%emt 0:16:04] White is slightly better.} dxe5 {[%emt 0:18:54]} 18. fxe5 {[%emt 0:00:07]} Ne8 {[%emt 0:00:06]} 19. Ne4 {[%emt 0:01:22]} (19. Bxc6 $5 Qxc6 20. Ne4 $17) 19... Rd8 {[%emt 0:03:00]} 20. c3 {[%emt 0:01:39]} (20. Qf2 $14) 20... Bxe4 {[%emt 0:11:14]} (20... Ng7 $11) 21. Bxe4 $16 {[%emt 0:00:15]} (21. Rxe4 Ng7 $11) 21... Qc7 {[%emt 0:00:26]} 22. Qe3 {[%emt 0:00:41]} Rc8 {[%emt 0:00:33]} 23. b4 $36 {[%emt 0:04:24][%mdl 2048] Prevents Bc5. White is really pushing. White is more active.} Ng7 {[%emt 0:01:51]} 24. g4 {[%emt 0:00:33] Wards off Nf5} Qc4 $2 {[%emt 0:01:41] Loses the game.} (24... Qd8 $16 {is a better defense.} 25. Qf3 a5) 25. Rf3 $18 {[%emt 0:03:49][%cal Bf1f3,Bf3f6,Bf6h6][%mdl 32] [#] Black must now prevent Qh6.} Bh4 {[%emt 0:08:49]} 26. Rg1 {[%emt 0:01:48]} g5 $2 {[%emt 0:00:12]} (26... Rc7 27. Qh6 f5 28. gxf5 (28. exf6 Bxf6 29. Qe3 Rcf7 $18) 28... exf5 29. Qxh4 fxe4 30. Rxf8+ (30. Qxe4 Rxf3 31. Qxf3 Rf7 $11) 30... Kxf8 31. Bc5+ (31. Qxe4 Ne6 $11) (31. Qxh7 e3 $18) 31... Ke8 32. Qxh7 Qf7 33. Qh8+ (33. Rxg6 Qf1+ 34. Rg1 Qf3+ 35. Rg2 Ne6 $16) (33. Qxg6 e3 $18) 33... Kd7 34. Rd1+ Ke6) 27. Rf6 {[%emt 0:02:49] Strongly threatening Rh6. White is clearly winning.} Rfd8 {[%emt 0:01:36]} 28. Rh6 {[%emt 0:00:58]} Qa2 {[%emt 0:00:04]} 29. Bxh7+ {[%emt 0:01:49] Weighted Error Value: White=0.10 (very precise) /Black=0.48.  Loses game:     	---       	Black=1      Mistake:       	White=1     	Black=2      Inaccurate:     	---       	Black=1      OK:         	White=8     	Black=6} 1-0

[Event "XII Cracow ICC-A 2024"]
[Site "Krakow"]
[Date "2024.06.22"]
[Round "1.14"]
[White "Szczurek, Krzysztof"]
[Black "Licznerski, Lukasz"]
[Result "0-1"]
[ECO "B13"]
[WhiteElo "2245"]
[BlackElo "2434"]
[Annotator "TA"]
[PlyCount "96"]
[EventDate "2024.06.20"]
[EventType "swiss"]
[EventCountry "POL"]
[SourceTitle "playchess.com"]
[Source "ChessBase"]
[SourceQuality "1"]
[TimeControl "40/5400+30:1800+30"]

{[%evp 28,96,0,0,39,51,34,36,61,-17,-1,-75,-84,-66,-75,-114,-109,-156,-161,-243,-246,-265,-236,-233,-246,-283,-214,-200,-220,-212,-165,-160,-173,-190,-167,-173,-183,-171,-202,-188,-188,-29977,-29976,-29974,-365,-324,-305,-489,-484,-518,-517,-614,-616,-672,-658,-624,-610,-625,-602,-666,-659,-2102,-1864,-2164,-1976,-29985,-29986,-29986,-29987,-29989,-29990]} 1. e4 {[%emt 0:00:03]} c6 {[%emt 0:09:53]} 2. d4 d5 {[%emt 0:00:22]} 3. exd5 {[%emt 0:00:18]} cxd5 {[%emt 0:00:08]} 4. Bd3 {[%emt 0:00:05]} Nc6 {[%emt 0:00:40]} 5. c3 {[%emt 0:00:18]} Qc7 {[%emt 0:00:53]} 6. h3 {[%emt 0:02:06]} g6 {[%emt 0:03:33] 6...e6 is the modern continuation.} 7. Na3 {[%emt 0:02:53] B13: Caro-Kann: Exchange Variation and Panov-Botvinnik Attack.} Bh6 $146 {[%emt 0:05:25]} ({Predecessor:} 7... a6 8. Nc2 Bf5 9. Be2 Nf6 10. Ne3 Bd7 11. Nf3 Bg7 12. a4 O-O 13. O-O Rad8 14. Re1 Rfe8 {1-0 Haug,H (2218)-Bilan,D (2303) Titled Tuesday intern op 18th Jul Early blitz 2023 (7)}) 8. Bxh6 {[%emt 0:02:37]} Nxh6 {[%emt 0:00:04]} 9. Qf3 {[%emt 0:00:19]} e5 {[%emt 0:08:03]} 10. Qxd5 {[%emt 0:21:49]} exd4 {[%emt 0:00:56]} 11. Nb5 {[%emt 0:05:00]} Qe7+ {[%emt 0:02:17]} 12. Ne2 {[%emt 0:00:31]} O-O {[%emt 0:06:10]} 13. Nbxd4 {[%emt 0:06:56]} Nxd4 {[%emt 0:06:00]} 14. Qxd4 {[%emt 0:00:09]} Bf5 {[%emt 0:00:09]} 15. Bc4 {[%emt 0:00:26]} b5 {[%emt 0:05:33]} 16. Bxb5 {[%emt 0:03:56]} Qb7 {[%emt 0:02:39]} 17. Qe5 {[%emt 0:06:54]} Rad8 {[%emt 0:06:28]} 18. Nd4 {[%emt 0:11:52]} ({Better is} 18. O-O $14 Rd5 19. Qf4 Rxb5 (19... Qxb5 $2 20. c4 $18) 20. Qxh6) 18... Rd5 $11 {[%emt 0:08:42]} 19. Qe2 {[%emt 0:00:46]} (19. Qe3 $1 $11 Rxb5 20. O-O (20. Nxb5 Qxb5 21. a4 Qe8 $11) 20... Bxh3 21. Qxh3 (21. Qxh6 $2 Qxg2#)) 19... Rxd4 $1 $17 {[%emt 0:00:03]} 20. cxd4 {[%emt 0:00:11]} Qxg2 {[%emt 0:00:03]} 21. Kd2 {[%emt 0:11:20] [#]} (21. O-O-O $2 Rc8+ 22. Bc4 Qe4 $19 (22... Bxh3 23. Rdg1 $16)) 21... Rb8 $1 {[%emt 0:08:55]} 22. b3 {[%emt 0:06:10]} (22. Rac1 $142) 22... Qd5 $1 $17 {[%emt 0:01:45]} 23. Kc3 {[%emt 0:07:57]} (23. Bd3 Qa5+ 24. Kc2 Rc8+ 25. Kb1 Qb5 26. Bxf5 (26. Rd1 $2 Rc3 $19) 26... Qxe2 $19) (23. Qc4 $142 Rxb5 (23... Qxb5 $2 24. Qxb5 Rxb5 25. Rhe1 $19) 24. a4) 23... Rxb5 $19 {[%emt 0:01:22]} 24. Rac1 {[%emt 0:04:28]} Be6 {[%emt 0:02:41]} 25. Rhd1 {[%emt 0:00:59]} a5 {[%emt 0:06:42]} (25... Bxh3 26. Qe3 Ng4 (26... Qh5 $2 27. Rh1 $18) 27. Qxh3 Nxf2 28. Qc8+ Kg7 29. Rf1) 26. Qc4 {[%emt 0:01:14]} Qf3+ {[%emt 0:03:44]} (26... Bxh3 27. a4 Qf3+ 28. Rd3 $19) 27. Qd3 {[%emt 0:00:24]} Qb7 {[%emt 0:00:02]} (27... Qxf2 $2 28. Qxb5 Bxh3 29. Rd2 $18 (29. Qxa5 Ng4 $18)) (27... Qxh3 28. Qxh3 Bxh3 29. Rh1 $17) 28. Kb2 {[%emt 0:00:23]} Rh5 {[%emt 0:02:14]} 29. Rc5 {[%emt 0:00:55]} Rxh3 {[%emt 0:01:49]} 30. Qb5 {[%emt 0:01:40]} Qxb5 {[%emt 0:03:39]} 31. Rxb5 {[%emt 0:00:04]} Ng4 {[%emt 0:00:19]} 32. d5 {[%emt 0:01:59]} Bf5 {[%emt 0:01:08]} (32... Nxf2 33. Rd2 Nd3+ (33... Ne4 34. Rb8+ Kg7 35. dxe6 $16) 34. Rxd3 Rxd3 35. dxe6 fxe6 36. Rxa5) 33. d6 {[%emt 0:00:33]} Nxf2 {[%emt 0:00:25]} 34. Rxf5 $2 {[%emt 0:01:27]} (34. Rd4 $19 Rd3 35. Rxd3 Nxd3+ 36. Kc3) 34... Nxd1+ {[%emt 0:00:41]} 35. Kc2 {[%emt 0:00:06]} Rc3+ $2 {[%emt 0:01:27]} (35... Ne3+ {mates} 36. Kd2 gxf5 (36... Nxf5 37. d7 $17) 37. Ke1 Ng4 38. Kd2 Ne5 (38... Rh2+ $2 39. Kd3 $19) 39. Kd1 f4 (39... Rh1+ $2 40. Ke2 $19) 40. Ke1 Rd3 41. d7 Rxd7 (41... Nxd7 42. Kf2 f3 43. Kg3 Nf6 44. Kh2 f2 45. Kg2 Ne4 46. a3 f5 47. a4 Rd1 48. Kh2 f1=Q 49. b4 Qh1#) 42. Ke2 Rd3 (42... f3+ 43. Ke3 Rd3+ 44. Kf2 Ng4+ 45. Kg3 f2+ 46. Kg2 h5 47. a3 h4 48. b4 h3+ 49. Kf1 Rd1+ 50. Ke2 f1=Q#) 43. Ke1 f3 44. Kf2 Ng4+ 45. Kg3 f2+ 46. Kg2 h5 47. a3 h4 (47... Rxb3 48. a4 Re3 49. Kf1 h4 50. Kg2 h3+ 51. Kh1 f1=Q#) 48. b4 h3+ (48... Rxa3 49. bxa5 h3+ 50. Kf1 Re3 51. a6 Re1#) 49. Kf1 Rd1+ 50. Ke2 f1=Q#) 36. Kd2 $19 {[%emt 0:00:09] [#]} Rc8 $1 {[%emt 0:00:29]} (36... gxf5 37. d7 (37. Kxd1 $2 {perishes.} Rd3+ 38. Ke2 Rxd6 $19) 37... Kg7 (37... Rd3+ $2 38. Kxd3 Kg7 39. d8=Q $18) 38. d8=Q $18) (36... Rc6 37. Rd5 Rc8 38. Kxd1 $11) 37. Rxa5 $2 {[%emt 0:00:17]} (37. Re5 Rd8 38. Kxd1) 37... Nf2 $19 {[%emt 0:00:20]} 38. Ke3 {[%emt 0:00:10]} Ng4+ {[%emt 0:00:20]} 39. Kd4 {[%emt 0:00:34]} h5 {[%emt 0:01:25]} 40. b4 {[%emt 0:00:19]} h4 {[%emt 0:01:01]} 41. Ra3 {[%emt 0:30:06]} g5 {[%emt 0:31:57]} 42. b5 {[%emt 0:00:28]} Nf6 {[%emt 0:00:00]} 43. Rf3 {[%emt 0:00:00]} Kg7 {[%emt 0:00:00]} 44. a4 {[%emt 0:00:00]} g4 {[%emt 0:00:00]} 45. Rf1 {[%emt 0:00:00]} h3 {[%emt 0:00:00]} 46. a5 {[%emt 0:00:00]} g3 {[%emt 0:00:00]} 47. Rg1 {[%emt 0:00:00]} g2 {[%emt 0:00:00]} 48. a6 {[%emt 0:00:00]} Kf8 {[%emt 0:00:00]} 0-1

[Event "XII Cracow ICC-A 2024"]
[Site "Krakow"]
[Date "2024.06.22"]
[Round "1.16"]
[White "Pycinski, Wladyslaw"]
[Black "Nguyen, Piotr"]
[Result "1/2-1/2"]
[ECO "B08"]
[WhiteElo "2244"]
[BlackElo "2426"]
[Annotator "ChessBase"]
[PlyCount "85"]
[EventDate "2024.06.20"]
[EventType "swiss"]
[EventCountry "POL"]
[SourceTitle "playchess.com"]
[Source "ChessBase"]
[SourceQuality "1"]
[TimeControl "40/5400+30:1800+30"]

1. e4 {[%emt 0:00:10]} d6 {[%emt 0:00:16]} 2. d4 {[%emt 0:00:09]} g6 {[%emt 0:00:05]} 3. Nf3 {[%emt 0:00:41]} Nf6 {[%emt 0:00:13]} 4. Nc3 {[%emt 0:00:06]} Bg7 {[%emt 0:00:06]} 5. Be2 {[%emt 0:00:09]} O-O {[%emt 0:00:18]} 6. O-O {[%emt 0:00:19]} a6 {[%emt 0:00:42]} 7. a4 {[%emt 0:00:09]} Nc6 {[%emt 0:00:21]} 8. Be3 {[%emt 0:01:27]} e5 {[%emt 0:08:55]} 9. dxe5 {[%emt 0:06:14]} dxe5 {[%emt 0:00:54]} 10. Qxd8 {[%emt 0:00:52]} Rxd8 {[%emt 0:00:57]} 11. Bc4 {[%emt 0:00:30]} h6 {[%emt 0:20:42]} 12. h3 {[%emt 0:19:53]} Ne8 {[%emt 0:01:49]} 13. Rfd1 {[%emt 0:07:47]} Nd4 {[%emt 0:03:34]} 14. Bxd4 {[%emt 0:02:07]} exd4 {[%emt 0:00:47]} 15. Nd5 {[%emt 0:00:44]} Be6 {[%emt 0:13:14]} 16. Ba2 {[%emt 0:15:01]} Kf8 {[%emt 0:08:45]} 17. a5 {[%emt 0:10:46]} g5 {[%emt 0:11:45]} 18. Nd2 {[%emt 0:16:16]} Rd7 {[%emt 0:05:15]} 19. Nb4 {[%emt 0:02:24]} Bxa2 {[%emt 0:00:52]} 20. Rxa2 {[%emt 0:00:24]} Nd6 {[%emt 0:01:50]} 21. Nd3 {[%emt 0:00:42]} Re8 {[%emt 0:04:44]} 22. Ra3 {[%emt 0:04:20]} Rde7 {[%emt 0:03:29]} 23. Rb3 {[%emt 0:01:19]} c6 {[%emt 0:06:45]} 24. Kf1 {[%emt 0:01:54]} Rc7 {[%emt 0:00:43]} 25. Re1 {[%emt 0:03:01]} f6 {[%emt 0:03:57]} 26. Rb6 {[%emt 0:01:23]} Kf7 {[%emt 0:01:36]} 27. f3 {[%emt 0:03:51]} f5 {[%emt 0:00:48]} 28. exf5 {[%emt 0:00:52]} Nxf5 {[%emt 0:00:21]} 29. Rxe8 {[%emt 0:00:23]} Kxe8 {[%emt 0:00:01]} 30. Nc4 {[%emt 0:00:22]} Bf8 {[%emt 0:00:41]} 31. Rb3 {[%emt 0:01:00]} Kd7 {[%emt 0:00:52]} 32. Nde5+ {[%emt 0:00:40]} Ke6 {[%emt 0:00:13]} 33. Rd3 {[%emt 0:00:23]} Bg7 {[%emt 0:00:49]} 34. Ng4 {[%emt 0:00:31]} Re7 {[%emt 0:00:17]} 35. Rd1 {[%emt 0:00:37]} Kd5 {[%emt 0:00:26]} 36. b3 {[%emt 0:00:20]} h5 {[%emt 0:00:44]} 37. Nh2 {[%emt 0:00:12]} Bf6 {[%emt 0:00:40]} 38. Kf2 {[%emt 0:00:25]} g4 {[%emt 0:00:20]} 39. hxg4 {[%emt 0:00:31]} Bh4+ {[%emt 0:00:26]} 40. Kg1 {[%emt 0:00:17]} Ng3 {[%emt 0:00:38]} 41. gxh5 {[%emt 0:02:38]} Ne2+ {[%emt 0:02:58]} 42. Kh1 {[%emt 0:00:53]} Ng3+ {[%emt 0:02:36]} 43. Kg1 {[%emt 0:00:06]} 1/2-1/2

[Event "XII Cracow ICC-A 2024"]
[Site "Krakow"]
[Date "2024.06.22"]
[Round "1.17"]
[White "Sieciechowicz, Marcin"]
[Black "Vortmeier, Jan"]
[Result "1-0"]
[ECO "E73"]
[WhiteElo "2405"]
[BlackElo "2244"]
[Annotator "ChessBase"]
[PlyCount "65"]
[EventDate "2024.06.20"]
[EventType "swiss"]
[EventCountry "POL"]
[SourceTitle "playchess.com"]
[Source "ChessBase"]
[SourceQuality "1"]
[TimeControl "40/5400+30:1800+30"]

1. d4 {[%emt 0:00:08]} Nf6 {[%emt 0:00:09]} 2. c4 {[%emt 0:00:07]} g6 {[%emt 0:00:12]} 3. Nc3 {[%emt 0:00:05]} Bg7 {[%emt 0:00:11]} 4. e4 {[%emt 0:00:10]} d6 {[%emt 0:00:11]} 5. Be2 {[%emt 0:00:06]} O-O {[%emt 0:00:15]} 6. Be3 {[%emt 0:00:04]} e5 {[%emt 0:00:08]} 7. d5 {[%emt 0:00:12]} Na6 {[%emt 0:00:08]} 8. h4 {[%emt 0:01:21]} Nc5 {[%emt 0:00:09]} 9. Qc2 {[%emt 0:00:29]} c6 {[%emt 0:00:32]} 10. h5 {[%emt 0:00:56]} cxd5 {[%emt 0:00:17]} 11. cxd5 {[%emt 0:00:05]} Qa5 {[%emt 0:01:08]} 12. h6 {[%emt 0:00:21]} Bh8 {[%emt 0:00:07]} 13. f3 {[%emt 0:00:13]} Nh5 {[%emt 0:07:19]} 14. Rb1 {[%emt 0:00:19]} Ng3 {[%emt 0:06:16]} 15. b4 {[%emt 0:00:13]} Qd8 {[%emt 0:00:13]} 16. bxc5 {[%emt 0:00:39]} Nxh1 {[%emt 0:00:10]} 17. c6 {[%emt 0:00:18]} bxc6 {[%emt 0:11:17]} 18. dxc6 {[%emt 0:00:37]} Be6 {[%emt 0:04:17]} 19. Ba6 {[%emt 0:16:15]} Bf6 {[%emt 0:15:55]} 20. Bb7 {[%emt 0:13:00]} Bh4+ {[%emt 0:00:51]} 21. Kd1 {[%emt 0:01:45]} Bg5 {[%emt 0:24:18]} 22. Bxg5 {[%emt 0:06:05]} Qxg5 {[%emt 0:00:08]} 23. Qd2 {[%emt 0:00:17]} Qd8 {[%emt 0:14:24]} 24. Bxa8 {[%emt 0:02:08]} Qxa8 {[%emt 0:00:09]} 25. Nd5 {[%emt 0:04:51]} Bxd5 {[%emt 0:08:02]} 26. Qxd5 {[%emt 0:02:18]} Ng3 {[%emt 0:01:40]} 27. c7 {[%emt 0:06:50]} Qxd5+ {[%emt 0:03:15]} 28. exd5 {[%emt 0:00:02]} Nf5 {[%emt 0:00:19]} 29. Rb8 {[%emt 0:00:53]} Ne7 {[%emt 0:00:07]} 30. Rd8 {[%emt 0:02:49]} Nc8 {[%emt 0:02:31]} 31. f4 {[%emt 0:01:51]} f6 {[%emt 0:00:48]} 32. fxe5 {[%emt 0:00:26]} fxe5 {[%emt 0:00:22]} 33. Nf3 {[%emt 0:01:04]} 1-0

[Event "XII Cracow ICC-A 2024"]
[Site "Krakow"]
[Date "2024.06.22"]
[Round "1.18"]
[White "Gierulski, Kamil"]
[Black "Aarav Dengla"]
[Result "1/2-1/2"]
[ECO "B51"]
[WhiteElo "2242"]
[BlackElo "2395"]
[Annotator "ChessBase"]
[PlyCount "86"]
[EventDate "2024.06.20"]
[EventType "swiss"]
[EventCountry "POL"]
[SourceTitle "playchess.com"]
[Source "ChessBase"]
[SourceQuality "1"]
[TimeControl "40/5400+30:1800+30"]

1. e4 {[%emt 0:00:03]} c5 {[%emt 0:00:14]} 2. Nf3 {[%emt 0:00:02]} d6 {[%emt 0:00:16]} 3. Bb5+ {[%emt 0:00:03]} Nc6 {[%emt 0:01:09]} 4. O-O {[%emt 0:00:05]} Bd7 {[%emt 0:00:22]} 5. Re1 {[%emt 0:00:03]} Nf6 {[%emt 0:00:39]} 6. c3 {[%emt 0:00:05]} a6 {[%emt 0:00:17]} 7. Bf1 {[%emt 0:00:06]} Bg4 {[%emt 0:00:12]} 8. d4 {[%emt 0:00:06]} cxd4 {[%emt 0:00:33]} 9. cxd4 {[%emt 0:00:06]} e5 {[%emt 0:00:39]} 10. d5 {[%emt 0:00:08]} Nd4 {[%emt 0:00:36]} 11. Be3 {[%emt 0:00:05]} Nxf3+ {[%emt 0:02:01]} 12. gxf3 {[%emt 0:00:04]} Bd7 {[%emt 0:00:54]} 13. Nd2 {[%emt 0:00:05]} Be7 {[%emt 0:14:48]} 14. Nc4 {[%emt 0:00:27]} b5 {[%emt 0:00:59]} 15. Nb6 {[%emt 0:02:09]} Rb8 {[%emt 0:00:06]} 16. Nxd7 {[%emt 0:00:07]} Nxd7 {[%emt 0:00:16]} 17. Rc1 {[%emt 0:02:04]} Bg5 {[%emt 0:08:19]} 18. Rc6 {[%emt 0:03:12]} Bxe3 {[%emt 0:09:59]} 19. Rxe3 {[%emt 0:00:08]} Rb6 {[%emt 0:12:21]} 20. Bh3 {[%emt 0:09:38]} Rxc6 {[%emt 0:10:53]} 21. dxc6 {[%emt 0:00:02]} Nc5 {[%emt 0:06:41]} 22. Rc3 {[%emt 0:06:25]} Qc7 {[%emt 0:08:16]} 23. Qd5 {[%emt 0:04:39]} Na4 {[%emt 0:05:27]} 24. Rc2 {[%emt 0:10:02]} Nb6 {[%emt 0:06:56]} 25. Qd2 {[%emt 0:02:12]} O-O {[%emt 0:00:56]} 26. Qa5 {[%emt 0:01:16]} Ra8 {[%emt 0:00:20]} 27. b3 {[%emt 0:02:12]} Kf8 {[%emt 0:00:30]} 28. Qb4 {[%emt 0:02:48]} g5 {[%emt 0:04:14]} 29. Bf5 {[%emt 0:06:04]} h6 {[%emt 0:00:11]} 30. Kg2 {[%emt 0:05:25]} Ke7 {[%emt 0:01:26]} 31. a4 {[%emt 0:02:33]} Rb8 {[%emt 0:02:12]} 32. axb5 {[%emt 0:09:52]} axb5 {[%emt 0:00:15]} 33. Qxb5 {[%emt 0:02:52]} Nc8 {[%emt 0:00:22]} 34. Qa6 {[%emt 0:04:09]} Na7 {[%emt 0:00:28]} 35. Bd7 {[%emt 0:02:22]} Nb5 {[%emt 0:01:58]} 36. Ra2 {[%emt 0:02:40]} Nd4 {[%emt 0:00:28]} 37. Qa7 {[%emt 0:02:45]} Kd8 {[%emt 0:00:33]} 38. b4 {[%emt 0:01:22]} Nb5 {[%emt 0:01:19]} 39. Qa6 {[%emt 0:06:18]} Rb6 {[%emt 0:00:46]} 40. Qa5 {[%emt 0:00:17]} Rb8 {[%emt 0:00:12]} 41. Kg3 {[%emt 0:35:17]} h5 {[%emt 0:31:22]} 42. Ra4 {[%emt 0:03:00]} Rb6 {[%emt 0:00:00]} 43. Qa8+ {[%emt 0:00:00]} Rb8 {[%emt 0:00:00]} 1/2-1/2

[Event "XII Cracow ICC-A 2024"]
[Site "Krakow"]
[Date "2024.06.22"]
[Round "1.19"]
[White "Alexiadis, Hristos"]
[Black "Klepek, Witold"]
[Result "1/2-1/2"]
[ECO "E62"]
[WhiteElo "2378"]
[BlackElo "2236"]
[Annotator "ChessBase"]
[PlyCount "64"]
[EventDate "2024.06.20"]
[EventType "swiss"]
[EventCountry "POL"]
[SourceTitle "playchess.com"]
[Source "ChessBase"]
[SourceQuality "1"]
[TimeControl "40/5400+30:1800+30"]

1. Nf3 {[%emt 0:01:11]} Nf6 {[%emt 0:00:14]} 2. c4 {[%emt 0:00:37]} g6 {[%emt 0:00:29]} 3. d4 {[%emt 0:00:10]} Bg7 {[%emt 0:00:04]} 4. g3 {[%emt 0:00:15]} O-O {[%emt 0:00:36]} 5. Bg2 {[%emt 0:00:43]} d6 {[%emt 0:00:31]} 6. O-O {[%emt 0:00:35]} Nc6 {[%emt 0:00:03]} 7. Nc3 {[%emt 0:01:58]} e5 {[%emt 0:02:34]} 8. dxe5 {[%emt 0:10:05]} dxe5 {[%emt 0:00:04]} 9. Bg5 {[%emt 0:00:19]} h6 {[%emt 0:04:29]} 10. Qxd8 {[%emt 0:00:14]} Rxd8 {[%emt 0:00:03]} 11. Bxf6 {[%emt 0:00:11]} Bxf6 {[%emt 0:00:03]} 12. Nd5 {[%emt 0:00:09]} Kg7 {[%emt 0:00:02]} 13. Nxc7 {[%emt 0:02:17]} Rb8 {[%emt 0:00:03]} 14. e4 {[%emt 0:02:37]} Be7 {[%emt 0:05:01]} 15. Nd5 {[%emt 0:06:18]} Bc5 {[%emt 0:00:36]} 16. Rab1 {[%emt 0:04:06]} a5 {[%emt 0:12:24]} 17. h3 {[%emt 0:07:50]} Be6 {[%emt 0:05:50]} 18. Rfe1 {[%emt 0:07:59]} f6 {[%emt 0:11:14]} 19. Bf1 {[%emt 0:24:56]} Rd7 {[%emt 0:05:00]} 20. Kg2 {[%emt 0:06:25]} Rf8 {[%emt 0:04:13]} 21. a3 {[%emt 0:04:44]} a4 {[%emt 0:07:00]} 22. Bd3 {[%emt 0:06:03]} Nd4 {[%emt 0:04:40]} 23. Nxd4 {[%emt 0:03:46]} Bxd4 {[%emt 0:00:26]} 24. b4 {[%emt 0:01:45]} f5 {[%emt 0:02:43]} 25. exf5 {[%emt 0:03:14]} gxf5 {[%emt 0:03:55]} 26. b5 {[%emt 0:03:35]} Bxd5+ {[%emt 0:00:55]} 27. cxd5 {[%emt 0:00:02]} Rxd5 {[%emt 0:00:21]} 28. Red1 {[%emt 0:00:29]} Bc5 {[%emt 0:02:42]} 29. Bc2 {[%emt 0:00:08]} Rfd8 {[%emt 0:01:35]} 30. Rxd5 {[%emt 0:01:29]} Rxd5 {[%emt 0:00:05]} 31. Rd1 {[%emt 0:00:05]} Rxd1 {[%emt 0:01:25]} 32. Bxd1 {[%emt 0:00:06]} Bxa3 {[%emt 0:00:07]} 1/2-1/2

[Event "XII Cracow ICC-A 2024"]
[Site "Krakow"]
[Date "2024.06.22"]
[Round "1.20"]
[White "Berin, Artem"]
[Black "Hollan, Martin"]
[Result "1/2-1/2"]
[ECO "E12"]
[WhiteElo "2234"]
[BlackElo "2373"]
[Annotator "ChessBase"]
[PlyCount "117"]
[EventDate "2024.06.20"]
[EventType "swiss"]
[EventCountry "POL"]
[SourceTitle "playchess.com"]
[Source "ChessBase"]
[SourceQuality "1"]
[TimeControl "40/5400+30:1800+30"]

1. d4 {[%emt 0:00:04]} Nf6 {[%emt 0:00:08]} 2. c4 {[%emt 0:00:06]} e6 {[%emt 0:00:07]} 3. Nf3 {[%emt 0:00:37]} b6 {[%emt 0:01:08]} 4. Nc3 {[%emt 0:01:29]} Bb7 {[%emt 0:01:33]} 5. Qc2 {[%emt 0:02:06]} Bb4 {[%emt 0:00:17]} 6. a3 {[%emt 0:00:50]} Bxc3+ {[%emt 0:00:10]} 7. Qxc3 {[%emt 0:00:04]} d6 {[%emt 0:02:29]} 8. e3 {[%emt 0:01:55]} Nbd7 {[%emt 0:00:56]} 9. Bd3 {[%emt 0:01:16]} O-O {[%emt 0:04:11]} 10. O-O {[%emt 0:02:04]} e5 {[%emt 0:02:21]} 11. Nd2 {[%emt 0:02:58]} Re8 {[%emt 0:11:03]} 12. b4 {[%emt 0:01:46]} exd4 {[%emt 0:01:26]} 13. Qxd4 {[%emt 0:02:19]} Ne5 {[%emt 0:03:09]} 14. Be2 {[%emt 0:04:04]} c5 {[%emt 0:00:55]} 15. Qc3 {[%emt 0:04:13]} Rc8 {[%emt 0:11:52]} 16. Bb2 {[%emt 0:03:33]} Qc7 {[%emt 0:11:31]} 17. b5 {[%emt 0:03:10]} Qb8 {[%emt 0:00:36]} 18. Rfd1 {[%emt 0:00:50]} Qa8 {[%emt 0:00:50]} 19. f3 {[%emt 0:01:22]} d5 {[%emt 0:03:28]} 20. Qb3 {[%emt 0:08:20]} Rcd8 {[%emt 0:06:46]} 21. cxd5 {[%emt 0:01:18]} Bxd5 {[%emt 0:00:46]} 22. Qc2 {[%emt 0:00:53]} Qb8 {[%emt 0:02:37]} 23. e4 {[%emt 0:02:27]} Be6 {[%emt 0:07:01]} 24. Nf1 {[%emt 0:01:29]} Ned7 {[%emt 0:07:54]} 25. Ne3 {[%emt 0:04:28]} Nf8 {[%emt 0:01:12]} 26. g3 {[%emt 0:04:26]} Rxd1+ {[%emt 0:01:03]} 27. Rxd1 {[%emt 0:00:12]} Rd8 {[%emt 0:00:08]} 28. f4 {[%emt 0:01:29]} Rxd1+ {[%emt 0:00:36]} 29. Bxd1 {[%emt 0:00:18]} Qd8 {[%emt 0:00:20]} 30. Bf3 {[%emt 0:01:04]} Ne8 {[%emt 0:01:22]} 31. f5 {[%emt 0:02:05]} Bc8 {[%emt 0:00:17]} 32. e5 {[%emt 0:00:44]} Nc7 {[%emt 0:07:43]} 33. a4 {[%emt 0:00:36]} a6 {[%emt 0:00:06]} 34. Qc3 {[%emt 0:01:18]} Qe7 {[%emt 0:06:09]} 35. bxa6 {[%emt 0:01:01]} Bxa6 {[%emt 0:01:06]} 36. f6 {[%emt 0:05:10]} Qd7 {[%emt 0:02:07]} 37. fxg7 {[%emt 0:02:59]} Nfe6 {[%emt 0:00:14]} 38. Ng4 {[%emt 0:07:55]} Qd3 {[%emt 0:01:49]} 39. Qxd3 {[%emt 0:03:30]} Bxd3 {[%emt 0:00:04]} 40. Kf2 {[%emt 0:02:13]} Kxg7 {[%emt 0:01:25]} 41. Ke3 {[%emt 0:31:17]} Ba6 {[%emt 0:04:11]} 42. h4 {[%emt 0:00:00]} b5 {[%emt 0:03:06]} 43. axb5 {[%emt 0:00:00]} Nxb5 {[%emt 0:00:28]} 44. Be4 {[%emt 0:00:00]} Nbd4 {[%emt 0:01:04]} 45. Nf6 {[%emt 0:00:00]} h6 {[%emt 0:00:29]} 46. Kf2 {[%emt 0:00:00]} Ne2 {[%emt 0:08:11]} 47. Ne8+ {[%emt 0:00:00]} Kf8 {[%emt 0:01:05]} 48. Nd6 {[%emt 0:00:00]} N2d4 {[%emt 0:03:57]} 49. Bc1 {[%emt 0:00:00]} h5 {[%emt 0:00:06]} 50. Ba3 {[%emt 0:00:00]} Ke7 {[%emt 0:03:12]} 51. Nf5+ {[%emt 0:00:00]} Nxf5 {[%emt 0:00:07]} 52. Bxf5 {[%emt 0:00:00]} Kf8 {[%emt 0:00:21]} 53. g4 {[%emt 0:00:00]} hxg4 {[%emt 0:00:09]} 54. h5 {[%emt 0:00:00]} Kg7 {[%emt 0:01:09]} 55. Bc1 {[%emt 0:00:44]} g3+ {[%emt 0:01:32]} 56. Kg2 {[%emt 0:01:43]} Be2 {[%emt 0:00:26]} 57. h6+ {[%emt 0:00:35]} Kh8 {[%emt 0:00:09]} 58. Kxg3 {[%emt 0:00:38]} Bh5 {[%emt 0:00:16]} 59. Kf2 {[%emt 0:06:28]} 1/2-1/2